fUSD/lending_fUSD_20260521
["ID","MTS","AMOUNT","RATE_DAILY","PERIOD"]
[422722190,1779309033000,-1057.8747,0.00013342,2]
[422722194,1779309033000,-1000.0,0.000135,2]
[422722189,1779309033000,-797.563595,0.00013265,2]
[422722191,1779309033000,-1587.0,0.000134,2]
[422722192,1779309033000,-27583.97147691,0.00013469,2]
[422722193,1779309033000,-150.0,0.00013488,2]
[422722171,1779309033000,-1800.142,0.0001294,2]
[422722185,1779309033000,-700.0,0.00013257,2]
[422722168,1779309033000,-22204.52,0.0001288,2]
[422722140,1779309033000,-150.0,0.00012575,2]
[422722166,1779309033000,-433.0,0.00012868,2]
[422722207,1779309033000,-500.0,0.00013698,2]
[422722142,1779309033000,-200.0,0.00012586,2]
[422722146,1779309033000,-312.28288677,0.00012617,2]
[422722147,1779309033000,-2966.559,0.00012651,2]
[422722144,1779309033000,-284.0,0.00012605,2]
[422722153,1779309033000,-1543.581125,0.00012732,2]
[422722148,1779309033000,-1733.35,0.00012662,2]
[422722149,1779309033000,-2000.0,0.0001271,2]
[422722150,1779309033000,-2000.0,0.0001271,2]
[422722152,1779309033000,-167.199699,0.00012732,2]
[422722157,1779309033000,-2000.0,0.00012835,2]
[422722151,1779309033000,-2000.0,0.0001271,2]
[422722155,1779309033000,-1911.0,0.00012757,5]
[422722156,1779309033000,-3348.28877,0.00012832,2]
[422722158,1779309033000,-2000.0,0.00012835,2]
[422722154,1779309033000,-2703.14095,0.00012732,2]
[422722159,1779309033000,-2000.0,0.00012835,2]
[422722160,1779309033000,-2000.0,0.00012835,2]
[422722162,1779309033000,-2000.0,0.00012835,2]
[422722163,1779309033000,-2000.0,0.00012835,2]
[422722161,1779309033000,-2000.0,0.00012835,2]
[422722165,1779309033000,-350.0,0.0001285,2]
[422722164,1779309033000,-2000.0,0.00012843,2]
[422722167,1779309033000,-22204.52,0.0001288,2]
[422722169,1779309033000,-8800.0,0.000129,4]
[422722170,1779309033000,-587.0,0.00012925,2]
[422722196,1779309033000,-284.0,0.00013605,2]
[422722210,1779309033000,-500.0,0.00013698,2]
[422722200,1779309033000,-150.0,0.00013675,2]
[422722229,1779309033000,-502.73843506,0.00013698,2]
[422722233,1779309033000,-500.0,0.00013698,2]
[422722243,1779309033000,-500.0,0.00013698,2]
[422722232,1779309033000,-500.0,0.00013698,2]
[422722234,1779309033000,-594.69517291,0.00013698,2]
[422722235,1779309033000,-500.0,0.00013698,2]
[422722238,1779309033000,-500.0,0.00013698,2]
[422722236,1779309033000,-641.21721473,0.00013698,2]
[422722239,1779309033000,-500.0,0.00013698,2]
[422722240,1779309033000,-500.0,0.00013698,2]
[422722241,1779309033000,-500.0,0.00013698,2]
[422722242,1779309033000,-500.0,0.00013698,2]
[422722237,1779309033000,-500.0,0.00013698,2]
[422722244,1779309033000,-500.0,0.00013698,2]
[422722251,1779309033000,-500.0,0.00013698,2]
[422722246,1779309033000,-500.0,0.00013698,2]
[422722249,1779309033000,-500.0,0.00013698,2]
[422722245,1779309033000,-500.0,0.00013698,2]
[422722250,1779309033000,-500.0,0.00013698,2]
[422722248,1779309033000,-500.0,0.00013698,2]
[422722247,1779309033000,-500.0,0.00013698,2]
[422722252,1779309033000,-500.0,0.00013698,2]
[422722254,1779309033000,-500.0,0.00013698,2]
[422722253,1779309033000,-504.26,0.00013698,2]
[422722255,1779309033000,-500.0,0.00013698,2]
[422722228,1779309033000,-513.50677347,0.00013698,2]
[422722231,1779309033000,-500.0,0.00013698,2]
[422722199,1779309033000,-213.87936082,0.00013658,2]
[422722225,1779309033000,-500.0,0.00013698,2]
[422722227,1779309033000,-500.0,0.00013698,2]
[422722204,1779309033000,-507.33847723,0.00013698,2]
[422722198,1779309033000,-350.0,0.00013628,3]
[422722201,1779309033000,-500.0,0.00013698,2]
[422722206,1779309033000,-500.0,0.00013698,2]
[422722203,1779309033000,-500.0,0.00013698,2]
[422722205,1779309033000,-500.0,0.00013698,2]
[422722202,1779309033000,-500.0,0.00013698,2]
[422722211,1779309033000,-500.0,0.00013698,2]
[422722256,1779309033000,-500.0,0.00013698,2]
[422722219,1779309033000,-500.0,0.00013698,2]
[422722208,1779309033000,-500.0,0.00013698,2]
[422722220,1779309033000,-500.0,0.00013698,2]
[422722209,1779309033000,-500.0,0.00013698,2]
[422722215,1779309033000,-500.0,0.00013698,2]
[422722212,1779309033000,-500.0,0.00013698,2]
[422722230,1779309033000,-500.0,0.00013698,2]
[422722226,1779309033000,-500.0,0.00013698,2]
[422722224,1779309033000,-500.0,0.00013698,2]
[422722221,1779309033000,-999.02,0.00013698,2]
[422722222,1779309033000,-500.0,0.00013698,2]
[422722218,1779309033000,-500.0,0.00013698,2]
[422722223,1779309033000,-500.0,0.00013698,2]
[422722217,1779309033000,-500.0,0.00013698,2]
[422722214,1779309033000,-500.0,0.00013698,2]
[422722213,1779309033000,-500.0,0.00013698,2]
[422722216,1779309033000,-330.57854862,0.00013698,2]
[422722298,1779309034000,-322.82,0.00014,2]
[422722297,1779309034000,-322.82,0.00014,2]
[422722300,1779309034000,-261.37,0.00014,2]
[422722301,1779309034000,-250.0,0.00014,2]
[422722281,1779309034000,-1224.0,0.00013812,2]
[422722290,1779309034000,-652.884269,0.00013929,2]
[422722289,1779309034000,-323.853015,0.00013929,2]
[422722291,1779309034000,-27583.97147691,0.00013946,2]
[422722284,1779309034000,-166.66,0.00013836,2]
[422722302,1779309034000,-200.0,0.00014,2]
[422722292,1779309034000,-3133.0362127,0.00013965,2]
[422722296,1779309034000,-322.82,0.00014,2]
[422722311,1779309034000,-153.874212,0.0001404,2]
[422722294,1779309034000,-160.0,0.0001398,2]
[422722295,1779309034000,-10920.53524957,0.0001399,2]
[422722299,1779309034000,-4204.08794443,0.00014,2]
[422722303,1779309034000,-4501.39,0.00014,2]
[422722304,1779309034000,-4501.39,0.00014,2]
[422722314,1779309034000,-1910.0,0.00014109,5]
[422722308,1779309034000,-500.0,0.00014027,2]
[422722309,1779309034000,-11241.73324292,0.00014039,2]
[422722305,1779309034000,-4501.39,0.00014,2]
[422722307,1779309034000,-200.0,0.00014,2]
[422722315,1779309034000,-166.66,0.0001411,2]
[422722285,1779309034000,-164.36,0.0001385,2]
[422722293,1779309034000,-166.66,0.00013973,2]
[422722288,1779309034000,-151.0,0.00013897,2]
[422722267,1779309034000,-500.0,0.00013698,2]
[422722282,1779309034000,-3633.0,0.00013812,2]
[422722313,1779309034000,-150.0,0.0001405,2]
[422722257,1779309034000,-500.0,0.00013698,2]
[422722261,1779309034000,-500.0,0.00013698,2]
[422722259,1779309034000,-500.0,0.00013698,2]
[422722262,1779309034000,-500.0,0.00013698,2]
[422722258,1779309034000,-500.0,0.00013698,2]
[422722260,1779309034000,-500.0,0.00013698,2]
[422722263,1779309034000,-500.0,0.00013698,2]
[422722264,1779309034000,-500.0,0.00013698,2]
[422722265,1779309034000,-500.0,0.00013698,2]
[422722273,1779309034000,-274.499836,0.00013699,2]
[422722274,1779309034000,-150.0,0.000137,2]
[422722278,1779309034000,-2314.0,0.0001372,2]
[422722275,1779309034000,-190.45910978,0.000137,2]
[422722269,1779309034000,-448.25372383,0.00013698,2]
[422722276,1779309034000,-350.0,0.000137,2]
[422722272,1779309034000,-200.0,0.00013699,2]
[422722271,1779309034000,-166.66,0.00013699,2]
[422722268,1779309034000,-500.0,0.00013698,2]
[422722270,1779309034000,-2500.0,0.00013699,2]
[422722280,1779309034000,-1271.0,0.00013812,2]
[422722277,1779309034000,-163.0,0.0001372,2]
[422722279,1779309034000,-166.67,0.00013807,2]
[422722287,1779309034000,-150.0,0.00013862,2]
[422722286,1779309034000,-569.966569,0.00013859,2]
[422722283,1779309034000,-6058.0,0.00013812,2]
[422722266,1779309034000,-500.0,0.00013698,2]
[422722310,1779309034000,-10500.27074186,0.0001404,2]
[422722322,1779309034000,-10000.0,0.0001415,2]
[422722312,1779309034000,-1587.0,0.0001404,2]
[422722342,1779309034000,-500.0,0.00014249,2]
[422722345,1779309034000,-500.0,0.00014249,2]
[422722344,1779309034000,-500.0,0.00014249,2]
[422722347,1779309034000,-500.0,0.00014249,2]
[422722352,1779309034000,-506.67968673,0.00014249,2]
[422722348,1779309034000,-500.0,0.00014249,2]
[422722349,1779309034000,-500.0,0.00014249,2]
[422722350,1779309034000,-500.0,0.00014249,2]
[422722354,1779309034000,-500.0,0.00014249,2]
[422722358,1779309034000,-500.0,0.00014249,2]
[422722360,1779309034000,-999.02,0.00014249,2]
[422722355,1779309034000,-500.0,0.00014249,2]
[422722346,1779309034000,-231.28528028,0.00014249,2]
[422722365,1779309034000,-500.0,0.00014249,2]
[422722306,1779309034000,-4501.39,0.00014,2]
[422722362,1779309034000,-500.0,0.00014249,2]
[422722357,1779309034000,-500.0,0.00014249,2]
[422722361,1779309034000,-999.02,0.00014249,2]
[422722363,1779309034000,-500.0,0.00014249,2]
[422722364,1779309034000,-500.0,0.00014249,2]
[422722366,1779309034000,-500.0,0.00014249,2]
[422722367,1779309034000,-369.00573565,0.00014249,2]
[422722369,1779309034000,-500.0,0.00014249,2]
[422722371,1779309034000,-128655.92154405,0.0001425,2]
[422722368,1779309034000,-500.0,0.00014249,2]
[422722370,1779309034000,-500.0,0.00014249,2]
[422722359,1779309034000,-999.02,0.00014249,2]
[422722351,1779309034000,-500.0,0.00014249,2]
[422722356,1779309034000,-500.0,0.00014249,2]
[422722353,1779309034000,-500.0,0.00014249,2]
[422722343,1779309034000,-500.0,0.00014249,2]
[422722316,1779309034000,-166.66,0.00014117,2]
[422722325,1779309034000,-150.0,0.00014237,2]
[422722327,1779309034000,-166.66,0.00014247,2]
[422722328,1779309034000,-151.0,0.00014247,2]
[422722326,1779309034000,-3292.0,0.00014238,2]
[422722318,1779309034000,-2000.0,0.00014127,2]
[422722324,1779309034000,-823.0,0.00014208,2]
[422722320,1779309034000,-200.0,0.0001414,2]
[422722319,1779309034000,-200.0,0.0001414,2]
[422722321,1779309034000,-187.70798372,0.0001415,2]
[422722323,1779309034000,-159.93,0.00014207,2]
[422722317,1779309034000,-736.0,0.0001412,2]
[422722332,1779309034000,-500.0,0.00014249,2]
[422722335,1779309034000,-500.0,0.00014249,2]
[422722329,1779309034000,-151.0,0.00014247,2]
[422722339,1779309034000,-500.0,0.00014249,2]
[422722338,1779309034000,-500.0,0.00014249,2]
[422722336,1779309034000,-500.0,0.00014249,2]
[422722341,1779309034000,-500.0,0.00014249,2]
[422722337,1779309034000,-500.0,0.00014249,2]
[422722333,1779309034000,-500.0,0.00014249,2]
[422722334,1779309034000,-500.0,0.00014249,2]
[422722340,1779309034000,-500.0,0.00014249,2]
[422722330,1779309034000,-500.0,0.00014248,2]
[422722331,1779309034000,-500.0,0.00014248,2]
[422722374,1779309037000,-3178.68155529,0.000109,2]
[422722373,1779309037000,-708.38683977,0.000109,2]
[422722393,1779309038000,-53955.71435947,0.0001425,2]
[422722396,1779309038000,-317618.0045291,0.0001425,2]
[422722400,1779309038000,-500.0,0.0001425,2]
[422722397,1779309038000,-128355.4445372,0.0001425,2]
[422722399,1779309038000,-500.0,0.0001425,2]
[422722395,1779309038000,-3494.11304809,0.0001425,2]
[422722398,1779309038000,-500.0,0.0001425,2]
[422722402,1779309038000,-500.0,0.0001425,2]
[422722401,1779309038000,-500.0,0.0001425,2]
[422722394,1779309038000,-2047.49997,0.0001425,2]
[422722404,1779309038000,-500.0,0.0001425,2]
[422722409,1779309038000,-500.0,0.0001425,2]
[422722410,1779309038000,-500.0,0.0001425,2]
[422722392,1779309038000,-2088.69080847,0.00013965,2]
[422722391,1779309038000,-151.0,0.00013698,2]
[422722378,1779309038000,-3069.00753331,0.00011112,2]
[422722390,1779309038000,-367.13331002,0.00013698,2]
[422722403,1779309038000,-500.0,0.0001425,2]
[422722375,1779309038000,-796.01445531,0.000109,2]
[422722376,1779309038000,-691.58645727,0.000109,2]
[422722377,1779309038000,-1495.37983464,0.000109,2]
[422722379,1779309038000,-2892.54619261,0.00011112,2]
[422722381,1779309038000,-6870.04914222,0.00011248,2]
[422722389,1779309038000,-208.63953863,0.00013262,2]
[422722386,1779309038000,-564.04873621,0.00012443,2]
[422722382,1779309038000,-12354.81617367,0.00011586,2]
[422722387,1779309038000,-500.0,0.00012443,2]
[422722388,1779309038000,-1210.57806953,0.0001277,2]
[422722384,1779309038000,-500.0,0.00012443,2]
[422722383,1779309038000,-1210.57806953,0.00012059,2]
[422722385,1779309038000,-261.4093058,0.00012443,2]
[422722380,1779309038000,-6393.26244775,0.00011112,2]
[422722412,1779309038000,-151.0,0.0001425,2]
[422722448,1779309038000,-748.26893567,0.00014443,2]
[422722413,1779309038000,-151.0,0.0001425,2]
[422722447,1779309038000,-599.38282635,0.00014443,2]
[422722445,1779309038000,-315.0,0.00014443,2]
[422722446,1779309038000,-1089.19505249,0.00014443,2]
[422722442,1779309038000,-312.46896157,0.00014443,2]
[422722449,1779309038000,-732.39911719,0.00014443,2]
[422722443,1779309038000,-744.3463817,0.00014443,2]
[422722450,1779309038000,-874.22355268,0.00014443,2]
[422722439,1779309038000,-12043.94014643,0.00014443,2]
[422722437,1779309038000,-500.0,0.00014442,2]
[422722435,1779309038000,-500.0,0.00014442,2]
[422722434,1779309038000,-358.14,0.00014427,2]
[422722433,1779309038000,-150.0,0.00014424,2]
[422722432,1779309038000,-200.0,0.00014424,2]
[422722431,1779309038000,-200.0,0.00014424,2]
[422722430,1779309038000,-27583.97147691,0.00014423,2]
[422722411,1779309038000,-294.204584,0.0001425,2]
[422722427,1779309038000,-166.66,0.00014384,2]
[422722429,1779309038000,-9284.6510347,0.00014422,2]
[422722405,1779309038000,-500.0,0.0001425,2]
[422722415,1779309038000,-151.0,0.0001425,2]
[422722407,1779309038000,-500.0,0.0001425,2]
[422722406,1779309038000,-500.0,0.0001425,2]
[422722424,1779309038000,-344.0,0.0001436,2]
[422722417,1779309038000,-200.0,0.00014281,2]
[422722408,1779309038000,-500.0,0.0001425,2]
[422722425,1779309038000,-2314.0,0.0001436,2]
[422722419,1779309038000,-200.0,0.00014281,2]
[422722421,1779309038000,-1349.28756852,0.00014285,5]
[422722423,1779309038000,-1970.0,0.0001436,2]
[422722422,1779309038000,-5384.04052,0.00014342,2]
[422722428,1779309038000,-11000.0,0.000144,5]
[422722426,1779309038000,-164.0,0.0001436,2]
[422722458,1779309040000,-469.3,0.00014548,2]
[422722465,1779309040000,-150.0,0.00014612,2]
[422722464,1779309040000,-284.0,0.00014605,2]
[422722462,1779309040000,-200.0,0.00014568,2]
[422722463,1779309040000,-2200.0,0.000146,5]
[422722461,1779309040000,-200.0,0.00014568,2]
[422722460,1779309040000,-471.36,0.0001455,2]
[422722451,1779309040000,-183.56665501,0.00014443,2]
[422722457,1779309040000,-187.70798372,0.00014525,2]
[422722456,1779309040000,-666.0,0.0001452,2]
[422722453,1779309040000,-60870.92035232,0.00014443,2]
[422722455,1779309040000,-2200.0,0.000145,5]
[422722454,1779309040000,-500.0,0.00014445,2]
[422722468,1779309040000,-500.0,0.00014625,2]
[422722452,1779309040000,-238.07162313,0.00014443,2]
[422722459,1779309040000,-471.37025697,0.0001455,2]
[422722467,1779309040000,-500.0,0.00014625,2]
[422722471,1779309040000,-500.0,0.00014625,2]
[422722469,1779309040000,-500.0,0.00014625,2]
[422722487,1779309040000,-151.0,0.00014779,2]
[422722488,1779309040000,-1757.78576982,0.00014782,2]
[422722486,1779309040000,-830.21423018,0.00014766,2]
[422722485,1779309040000,-14169.78576982,0.00014766,2]
[422722478,1779309040000,-3222.36612,0.00014685,2]
[422722466,1779309040000,-500.0,0.00014625,2]
[422722480,1779309040000,-1392.46053898,0.00013965,2]
[422722483,1779309040000,-2200.0,0.000147,5]
[422722474,1779309040000,-500.0,0.00014625,2]
[422722475,1779309040000,-6111.0,0.00014673,2]
[422722477,1779309040000,-365.54270048,0.00014685,2]
[422722476,1779309040000,-3262.18796972,0.00014685,2]
[422722472,1779309040000,-500.0,0.00014625,2]
[422722470,1779309040000,-500.0,0.00014625,2]
[422722473,1779309040000,-999.02,0.00014625,2]
[422722479,1779309040000,-1857.85604049,0.00014685,2]
[422722481,1779309040000,-1831.1046782,0.00014685,2]
[422722495,1779309043000,-1027.23724345,0.00011856,2]
[422722504,1779309046000,-5842.81189877,0.00011856,2]
[422722505,1779309046000,-5203.53320123,0.00012059,2]
[422722506,1779309046000,-322.05032507,0.00012059,2]
[422722507,1779309046000,-6829.23264737,0.00012059,2]
[422722508,1779309046000,-1210.57806953,0.0001348,2]
[422722509,1779309046000,-862.9081979,0.00013756,2]
[422722510,1779309105000,-20111.0,0.0001245,2]
[422722511,1779309160000,-555.99,0.00012139,2]
[422722512,1779309208000,-10000.0,0.00015,7]
[422722519,1779310158000,3643.0,0.00028767,120]
[422722542,1779310232000,-9999.99,0.00012249,2]
[422722541,1779310232000,-300.0,0.00012248,2]
[422722540,1779310232000,-300.0,0.00012248,2]
[422722538,1779310232000,-1200.0,0.00012244,2]
[422722536,1779310232000,-631.16,0.00011946,2]
[422722537,1779310232000,-474.24878277,0.00011946,2]
[422722535,1779310232000,-370.50525017,0.00011946,2]
[422722530,1779310232000,-151.6591936,0.00011775,2]
[422722534,1779310232000,-1987.12596706,0.00011946,2]
[422722539,1779310232000,-3463.04,0.00012245,2]
[422722529,1779310232000,-150.0,0.00011775,2]
[422722531,1779310232000,-200.0,0.000118,4]
[422722528,1779310232000,-798.81,0.00011749,2]
[422722527,1779310232000,-159.93,0.00011609,2]
[422722526,1779310232000,-1708.7,0.00011479,2]
[422722533,1779310232000,-400.0,0.000119,4]
[422722543,1779310232000,-15130.3704349,0.0001225,2]
[422722532,1779310232000,-166.66,0.00011871,2]
[422722547,1779310232000,-151.73,0.00012329,2]
[422722568,1779310232000,-88300.38638093,0.0001235,2]
[422722567,1779310232000,-187.38871706,0.00012349,2]
[422722560,1779310232000,-153.92277792,0.00012349,2]
[422722562,1779310232000,-382.98651406,0.00012349,2]
[422722564,1779310232000,-500.0,0.00012349,2]
[422722556,1779310232000,-500.0,0.00012349,2]
[422722555,1779310232000,-638.64401289,0.00012349,2]
[422722554,1779310232000,-500.0,0.00012349,2]
[422722558,1779310232000,-594.83411534,0.00012349,2]
[422722552,1779310232000,-150.0,0.00012348,2]
[422722550,1779310232000,-25066.90426851,0.0001234,2]
[422722551,1779310232000,-1026.21689583,0.0001234,2]
[422722549,1779310232000,-7412.88970422,0.00012333,2]
[422722545,1779310232000,-37954.3055,0.0001225,2]
[422722546,1779310232000,-5000.0,0.0001225,2]
[422722548,1779310232000,-4293.78071394,0.00012333,2]
[422722553,1779310232000,-500.0,0.00012349,2]
[422722544,1779310232000,-2500.0,0.0001225,2]
[422722583,1779310238000,-1645.54075,0.0001235,2]
[422722582,1779310238000,-280.130245,0.0001235,2]
[422722629,1779310240000,-540.05395328,0.0001235,2]
[422722631,1779310242000,-90297.52310908,0.0001235,2]
[422722630,1779310242000,-98072.94627079,0.0001235,2]
[422722632,1779310242000,-91390.41655211,0.0001235,2]
[422722633,1779310242000,-776.90309751,0.0001235,2]
[422722690,1779310243000,-506.3588208,0.0001235,2]
[422722689,1779310243000,-363.61920542,0.0001235,2]
[422722688,1779310243000,-648.32793,0.0001235,2]
[422722695,1779310246000,-77972.01545373,0.0001235,2]
[422722694,1779310246000,-1841.2110129,0.0001235,2]
[422722693,1779310246000,-4003.53978987,0.0001235,2]
[422722705,1779311341000,1000.0,0.00028766,120]
[422722754,1779311432000,-299.99,0.00011878,2]
[422722752,1779311432000,-1200.0,0.00011877,2]
[422722750,1779311432000,-255.07949517,0.00011628,2]
[422722761,1779311432000,-35366.3454692,0.00012149,2]
[422722749,1779311432000,-399.4,0.00011589,2]
[422722747,1779311432000,-2077.82,0.00011588,2]
[422722733,1779311432000,-526.87,0.00011376,2]
[422722742,1779311432000,-2000.0,0.00011405,2]
[422722740,1779311432000,-257.68,0.00011405,2]
[422722720,1779311432000,-150.0,0.00011314,2]
[422722723,1779311432000,-179.40925851,0.00011348,2]
[422722756,1779311432000,-2077.82,0.00011878,2]
[422722744,1779311432000,-158.81,0.00011448,2]
[422722758,1779311432000,-500.0,0.00011927,2]
[422722774,1779311432000,-627.92076636,0.0001215,2]
[422722762,1779311432000,-150.0,0.00012149,2]
[422722760,1779311432000,-567.695,0.0001205,2]
[422722775,1779311432000,-507.104,0.0001215,2]
[422722773,1779311432000,-4751.41049392,0.0001215,2]
[422722770,1779311432000,-26185.59258531,0.0001215,2]
[422722766,1779311432000,-388.019697,0.0001215,2]
[422722765,1779311432000,-2860.62950549,0.0001215,2]
[422722772,1779311432000,-10878.70377158,0.0001215,2]
[422722768,1779311432000,-659.1457183,0.0001215,2]
[422722767,1779311432000,-13266.57825408,0.0001215,2]
[422722771,1779311432000,-7565.24911721,0.0001215,2]
[422722763,1779311432000,-16375.73053911,0.0001215,2]
[422722764,1779311432000,-18597.10998178,0.0001215,2]
[422722769,1779311432000,-1146.86392482,0.0001215,2]
[422722781,1779311433000,-1368.29483325,0.0001215,2]
[422722776,1779311433000,-615.73022702,0.0001215,2]
[422722777,1779311433000,-4800.74438523,0.0001215,2]
[422722779,1779311433000,-665.79967857,0.0001215,2]
[422722778,1779311433000,-1763.20802313,0.0001215,2]
[422722780,1779311433000,-438.17163695,0.0001215,2]
[422722782,1779311433000,-2077.82,0.00012168,2]
[422722787,1779311433000,-287.64360199,0.00012244,2]
[422722784,1779311433000,-2088.41628585,0.00012244,2]
[422722786,1779311433000,-299.23478,0.00012244,2]
[422722785,1779311433000,-699.59791438,0.00012244,2]
[422722788,1779311433000,-252.94182403,0.00012247,2]
[422722790,1779311433000,-2071.51057325,0.0001225,2]
[422722789,1779311433000,-7222.21917455,0.00012247,2]
[422722783,1779311433000,-382.16554246,0.00012244,2]
[422722801,1779311440000,-935.01124745,0.0001225,2]
[422722810,1779311443000,-151.73,0.00012329,2]
[422722806,1779311443000,-335.0130793,0.0001225,2]
[422722809,1779311443000,-503.33,0.00012329,2]
[422722811,1779311443000,-2235.8569207,0.00012329,2]
[422722808,1779311443000,-179.07,0.00012276,2]
[422722812,1779311443000,-1952.50204367,0.00012329,2]
[422722816,1779311446000,-758.52221182,0.00012329,2]
[422722821,1779311633000,153.26,5.913e-05,2]
[422722826,1779312004000,150.82,0.00028315,120]
[422722828,1779312106000,10000.0,0.00028767,120]
[422722841,1779312503000,152.03,5.407e-05,2]
[422722847,1779312540000,1000.0,0.00028766,120]
[422722886,1779312631000,-344017.3084215,0.000107,2]
[422722884,1779312631000,-152.03,0.00010601,2]
[422722885,1779312631000,-150.0,0.00010699,2]
[422722888,1779312631000,-500.0,0.00010725,2]
[422722897,1779312631000,-159.93,0.00011173,2]
[422722895,1779312631000,-6921.35195874,0.00011099,2]
[422722892,1779312631000,-420.0,0.00010999,2]
[422722894,1779312631000,-2000.0,0.00011097,2]
[422722879,1779312631000,-300.0,9.999e-05,2]
[422722890,1779312631000,-1680.0,0.00010997,2]
[422722881,1779312631000,-1178.13421325,0.0001,2]
[422722877,1779312631000,-300.0,9.999e-05,2]
[422722883,1779312631000,-10058.99,0.0001056,2]
[422722880,1779312631000,-250.0,0.0001,2]
[422722891,1779312631000,-250.0,0.00010999,2]
[422722887,1779312631000,-33602.3969278,0.000107,2]
[422722878,1779312631000,-300.0,9.999e-05,2]
[422722876,1779312631000,-300.0,9.999e-05,2]
[422722875,1779312631000,-4621.4706949,9.998e-05,2]
[422722874,1779312631000,-1053.71656762,9.998e-05,2]
[422722872,1779312631000,-1200.0,9.997e-05,2]
[422722873,1779312631000,-2816.76444638,9.998e-05,2]
[422722882,1779312631000,-6750.05627502,0.0001,2]
[422722889,1779312631000,-300.94768934,0.00010997,2]
[422722893,1779312631000,-179.07,0.00011023,2]
[422722920,1779312631000,-500.0,0.00011804,2]
[422722916,1779312631000,-500.0,0.00011804,2]
[422722921,1779312631000,-500.0,0.00011804,2]
[422722919,1779312631000,-500.0,0.00011804,2]
[422722914,1779312631000,-500.0,0.00011804,2]
[422722917,1779312631000,-500.0,0.00011804,2]
[422722922,1779312631000,-500.0,0.00011804,2]
[422722918,1779312631000,-500.0,0.00011804,2]
[422722915,1779312631000,-500.0,0.00011804,2]
[422722913,1779312631000,-500.0,0.00011804,2]
[422722911,1779312631000,-500.0,0.00011804,2]
[422722908,1779312631000,-500.0,0.00011804,2]
[422722912,1779312631000,-500.0,0.00011804,2]
[422722909,1779312631000,-500.0,0.00011804,2]
[422722896,1779312631000,-6921.35195865,0.000111,2]
[422722900,1779312631000,-6921.35195865,0.00011575,2]
[422722907,1779312631000,-500.0,0.00011804,2]
[422722910,1779312631000,-500.0,0.00011804,2]
[422722899,1779312631000,-199.7,0.00011448,2]
[422722901,1779312631000,-831.12,0.0001161,2]
[422722898,1779312631000,-831.12,0.00011327,2]
[422722903,1779312631000,-255.0,0.00011737,2]
[422722905,1779312631000,-500.0,0.00011804,2]
[422722904,1779312631000,-1400.0,0.000118,4]
[422722906,1779312631000,-500.0,0.00011804,2]
[422722902,1779312631000,-700.0,0.000117,4]
[422722953,1779312632000,-500.0,0.00011804,2]
[422722949,1779312632000,-500.0,0.00011804,2]
[422722948,1779312632000,-500.0,0.00011804,2]
[422722951,1779312632000,-500.0,0.00011804,2]
[422722950,1779312632000,-500.0,0.00011804,2]
[422722952,1779312632000,-500.0,0.00011804,2]
[422722955,1779312632000,-500.0,0.00011804,2]
[422722954,1779312632000,-500.0,0.00011804,2]
[422722944,1779312632000,-500.0,0.00011804,2]
[422722965,1779312632000,-500.0,0.00011804,2]
[422722958,1779312632000,-500.0,0.00011804,2]
[422722957,1779312632000,-500.0,0.00011804,2]
[422722959,1779312632000,-500.0,0.00011804,2]
[422722961,1779312632000,-500.0,0.00011804,2]